Cogmind - Beta 9.6 @@@ ROGUE MODE // 2020.05.14 @ 17:20:41 Player: ok-primus Result: Destroyed by D-53 Grenadier with Mini Grenade Launcher Performance ------------- Evolutions (0) 0 Regions Visited (2) 400 Robots Destroyed (34) 170 Value Destroyed (615) 615 Prototype IDs (4) 80 Alien Tech Used (0) 0 Bonus (-233) -233 TOTAL SCORE: 1032 Bonus ------- Friendly Fire -233 Cogmind --------- Core Integrity 0/250 Matter 225/300 Energy 95/100 System Corruption 0% Temperature Cool (0) Movement Walking (150) Ox1 Location -10/Mines Parts ------- > --- POWER (1) -------- (None) > --- PROPULSION (2) --- Aluminum Leg Aluminum Leg > --- UTILITY (2) ------ Small Storage Unit Large Storage Unit > --- WEAPON (2) ------- Grenade Launcher > --- INVENTORY (12) --- Aluminum Leg Aluminum Leg Aluminum Leg Aluminum Leg Aluminum Leg Aluminum Leg Improved Heat Sink Small Laser Light Assault Rifle Hammer Peak State ------------ > --- POWER ------------ Light Nuclear Core > --- PROPULSION ------- Aluminum Leg Aluminum Leg > --- UTILITY ---------- Small Storage Unit Large Storage Unit > --- WEAPON ----------- Small Laser Small Laser > --- INVENTORY -------- Aluminum Leg Aluminum Leg Aluminum Leg Aluminum Leg Aluminum Leg Aluminum Leg Improved Heat Sink Light Assault Rifle Grenade Launcher Grenade Launcher Hammer [Rating: 10] Favorites ----------- Power Ion Engine Engine Ion Engine Power Core Light Nuclear Core Propulsion Aluminum Leg Treads Light Treads Leg Aluminum Leg Utility Small Storage Unit Storage Small Storage Unit Weapon Light Assault Rifle Energy Gun Small Laser Ballistic Gun Light Assault Rifle Launcher Grenade Launcher Impact Weapon Hammer Build | -11 -10 -10 ------- Run | Scr Mat Min Slots Evolved . | . . . Power . | . . . Propulsion . | . . . Utility . | . . . Weapon . | . . . Parts Attached 29 | 6 10 13 Power 5 | 1 1 3 Engine 4 | 1 1 2 Core 1 | . . 1 Reactor . | . . . Propulsion 11 | 2 5 4 Treads 1 | . 1 . Leg 10 | 2 4 4 Wheel . | . . . Hover . | . . . Flight . | . . . Utility 3 | 1 2 . Device . | . . . Storage 3 | 1 2 . Processor . | . . . Hackware . | . . . Protection . | . . . Artifact . | . . . Weapon 10 | 2 2 6 Energy Gun 3 | . . 3 Energy Cannon . | . . . Ballistic Gun 4 | 2 2 . Ballistic Cannon . | . . . Launcher 2 | . . 2 Special Weapon . | . . . Impact Weapon 1 | . . 1 Slashing Weapon . | . . . Piercing Weapon . | . . . Special Melee Weapon . | . . . Unidentified Prototypes . | . . . Parts Lost 12 | . 3 9 Power 5 | . 1 4 Propulsion 1 | . 1 . Utility . | . . . Weapon 6 | . 1 5 Highest Loss Streak 4 | . 1 4 Average Slot Usage (%) 98 | . 97 98 Engine 13 | . 14 13 Leg 27 | . 27 28 Storage 27 | . 27 28 Energy Gun 9 | . . 18 Ballistic Gun 17 | . 27 8 Naked Turns . | . . . Heaviest Build 27 | 11 27 27 Greatest Support 20 | 20 20 20 Greatest Overweight (x) 3 | 3 2 1 Average Overweight (x) . | . . 1 Largest Inventory Capacity 12 | 6 12 12 Average Capacity 11 | 5 11 12 Most Carried 12 | 6 12 12 Average Carried 9 | 4 9 11 Final Capacity 12 | 6 12 12 Final Carried 12 | 6 12 10 Class Distribution -------------------- 62% | Mutant 37% | Scavenger-Mutant Dominant Class ---------------- Mutant | -10/Materials Scavenger-Mutant | -10/Mines Resources | -11 -10 -10 ----------- Run | Scr Mat Min Matter Collected 587 | 211 260 116 Remotely . | . . . Salvage Created 845 | 65 494 286 Parts 56 | 3 32 21 Haulers Intercepted . | . . . Recyclers Shooed 1 | . 1 . Parts Field Recycled . | . . . Retrieved Matter . | . . . Parts Self-Destructed . | . . . Prevented . | . . . Kills | -11 -10 -10 ------- Run | Scr Mat Min Combat Hostiles Destroyed 28 | . 15 13 Guns 22 | . 15 7 AOE 6 | . . 6 Classes Destroyed 7 | 1 2 4 Builder 1 | . . 1 Tunneler 2 | . . 2 Recycler 2 | 1 1 . Swarmer 9 | . 6 3 Grunt 13 | . 9 4 Assembled 6 | . . 6 Guerrilla 1 | . . 1 Best Kill Streak 8 | 1 3 8 Combat Bots Only 6 | . 3 6 Max Kills in Single Turn 3 | 1 1 3 Gunslinging . | . . . Exploded 3 | . . 3 Melee . | . . . Uniques/NPCs Destroyed . | . . . Combat | -11 -10 -10 -------- Run | Scr Mat Min Damage Taken 1568 | . 714 854 Core 275 | . 121 154 Absorbed by Shields . | . . . Core Remaining (%) 100 | 100 . . Volleys Fired 102 | 2 65 35 Largest 2 | 2 2 2 Hottest 90 | 40 40 90 Shots Fired 189 | 4 126 59 Gun 183 | 4 126 53 Cannon . | . . . Launcher 6 | . . 6 Special . | . . . Kinetic 155 | 4 126 25 Thermal 28 | . . 28 Explosive 6 | . . 6 Electromagnetic . | . . . Robot Hit Streak 8 | 3 8 7 Robot Miss Streak 4 | . 4 4 Penetration Max . | . . . Secondary Targets 2 | . 1 1 Max Gunslinging Chain 1 | . 1 1 Shots Hit Robots 115 | 3 79 33 Core Hits 78 | 3 36 39 Critical Hits . | . . . Critical Kills . | . . . Critical Parts Destroyed . | . . . Melee Attacks . | . . . Impact . | . . . Slashing . | . . . Piercing . | . . . Sneak Attacks . | . . . Combat Hostiles . | . . . Follow-up Attacks . | . . . Damage Inflicted 1647 | 24 636 987 Guns 984 | 24 635 325 Cannons . | . . . Explosions 662 | . . 662 Melee . | . . . Ramming 1 | . 1 . Kinetic 787 | 24 635 128 Thermal 197 | . . 197 Explosive 662 | . . 662 Electromagnetic . | . . . Impact . | . . . Slashing . | . . . Piercing . | . . . Highest Corruption . | . . . Average Corruption . | . . . Corruption Purged . | . . . Overload Shots . | . . . Overflow Damage 20 | . . 20 Projectiles . | . . . Explosions 20 | . . 20 Melee . | . . . Knockbacks . | . . . Impact . | . . . Kinetic . | . . . Secondary . | . . . Self-Inflicted Damage . | . . . Shots . | . . . Rammed 1 | . 1 . Targets Rammed 1 | . 1 . Kicked . | . . . Crushed . | . . . Highest Temperature 249 | . 22 249 Average Temperature 48 | . 10 68 Received Heat Transfer 583 | . 288 295 Siege Activations . | . . . Robots Corrupted . | . . . Combat Hostiles . | . . . Parts Fried . | . . . Impact Corruptions . | . . . Robots Melted . | . . . Combat Hostiles . | . . . Parts Melted 2 | . . 2 Heat Transferred 485 | . . 485 Parts Sabotaged . | . . . Parts Stolen . | . . . Parts Stripped . | . . . Power Chain Reactions . | . . . Missiles Intercepted . | . . . Alert | -11 -10 -10 ------- Run | Scr Mat Min Peak Influence 279 | 5 279 141 Average Influence 97 | 1 115 91 Maximum Alert Level 1 | . 1 . Low Security (%) 91 | 100 81 100 Level 1 8 | . 18 . Level 2 . | . . . Level 3 . | . . . Level 4 . | . . . Level 5 . | . . . High Security . | . . . Max Security . | . . . Squads Dispatched 3 | . 3 . Investigation 1 | . 1 . Extermination . | . . . Reinforcement 2 | . 2 . Assault . | . . . Garrison . | . . . Intercept . | . . . Construction Impeded . | . . . Haulers Reinforced . | . . . Stealth | -11 -10 -10 --------- Run | Scr Mat Min Distress Signals 2 | . 2 . Communications Jammed . | . . . Distress Signals . | . . . Times Spotted 44 | . 27 17 Peak Tracking Total 8 | . 6 8 Tactical Retreats 4 | . 3 1 Traps | -11 -10 -10 ------- Run | Scr Mat Min Traps Triggered . | . . . Indirectly . | . . . Trap Hack Attempts . | . . . Triggered . | . . . Disarmed . | . . . Reprogrammed 3 | . 3 . Reused 1 | . 1 . Traps Extracted . | . . . Installed . | . . . Triggered 1 | . 1 . Machines | -11 -10 -10 ---------- Run | Scr Mat Min Machines Disabled . | . . . Max in Single Turn . | . . . Machines Sabotaged . | . . . Garrisons Compromised . | . . . Overloaded Fab Kills . | . . . Fab Network Shutdowns . | . . . Hacking | -11 -10 -10 --------- Run | Scr Mat Min Machines Accessed 3 | . 3 . Terminals 3 | . 3 . Fabricators . | . . . Repair Stations . | . . . Recycling Units . | . . . Scanalyzers . | . . . Garrison Access . | . . . Total Hacks 10 | . 10 . Successful 6 | . 6 . Failed 4 | . 4 . Catastrophic . | . . . Database Lockouts . | . . . Manual 2 | . 2 . Terminals 10 | . 10 . Fabricators . | . . . Repair Stations . | . . . Recycling Units . | . . . Scanalyzers . | . . . Garrison Access . | . . . Terminal Hacks 6 | . 6 . Prototype ID Bank 2 | . 2 . Branch Access Points 1 | . 1 . Locate Traps 1 | . 1 . Reprogram Traps 1 | . 1 . Security Status 1 | . 1 . Fabricator Hacks . | . . . Repair Station Hacks . | . . . Recycling Unit Hacks . | . . . Scanalyzer . | . . . Garrison Access Hacks . | . . . Unauthorized Hacks . | . . . Terminals . | . . . Fabricators . | . . . Repair Stations . | . . . Recycling Units . | . . . Scanalyzers . | . . . Garrison Access . | . . . Data Cores Recovered . | . . . Used . | . . . Hacking Detections 2 | . 2 . Full Trace Events . | . . . Feedback Events . | . . . Feedback Blocked . | . . . Robot Schematics Acquired . | . . . Robots Built . | . . . Matter . | . . . Time . | . . . Total Robot Build Rating . | . . . Part Schematics Acquired . | . . . Parts Built . | . . . Matter . | . . . Time . | . . . Total Part Build Rating . | . . . Parts Repaired . | . . . Time . | . . . Parts Recycled . | . . . Recycled Matter . | . . . Retrieved Matter . | . . . Retrieved Components . | . . . Parts Scanalyzed . | . . . Part Schematics Acquired . | . . . Parts Damaged . | . . . Bothacking | -11 -10 -10 ------------ Run | Scr Mat Min Used RIF Installer . | . . . Robots Hacked . | . . . Non-combat . | . . . Combat . | . . . Robot Hacks Applied . | . . . Relay Couplers Released . | . . . Robots Rewired . | . . . Allies Hacked . | . . . Hacks Repelled . | . . . Allies | -11 -10 -10 -------- Run | Scr Mat Min Total Allies . | . . . Largest Group . | . . . Highest-Rated Group . | . . . Highest-Rated Ally . | . . . Total Orders . | . . . Ally Attacks . | . . . Total Damage . | . . . Kills . | . . . Allies Corrupted . | . . . Allies Melted . | . . . Intel | -11 -10 -10 ------- Run | Scr Mat Min Robot Analysis Total . | . . . Derelict Logs Recovered . | . . . Drone Launches . | . . . Drone Recoveries . | . . . Exploration | -11 -10 -10 ------------- Run | Scr Mat Min Turns Passed 1260 | 69 575 616 Spaces Moved 600 | 38 237 325 Core 18 | 18 . . Treads 1 | . 1 . Legs 581 | 20 236 325 Wheels . | . . . Hover . | . . . Flight . | . . . Fastest Speed 50 | 50 120 150 Average Speed 146 | 123 146 150 Slowest Speed 200 | 200 180 150 Overloaded Moves . | . . . Propulsion Burnouts . | . . . Robots Hopped . | . . . Cave-ins Triggered . | . . . Exploration Rate (%) 34 | 4 42 57 Regions Visited 2 Branch Regions 1 Pre-discovered Areas . | . . . Known Exits Taken 1 | . 1 . Unknown Exits Taken 1 | 1 . . Scrap Searched 1 | . . 1 Spaces Dug . | . . . Terrain Destroyed 35 | . . 35 Melee . | . . . Projectile . | . . . AOE 35 | . . 35 Actions | -11 -10 -10 --------- Run | Scr Mat Min Total 820 | 55 367 398 Wait 53 | . 36 17 Move 598 | 37 236 325 Hop . | . . . Pick Up 24 | 8 11 5 Fast Attach 8 | 6 2 . Attach 10 | . 3 7 Detach 1 | . 1 . Swap 11 | . 5 6 Drop 12 | 2 7 3 Fire 102 | 2 65 35 Melee . | . . . Ram . | . . . Kick 1 | . 1 . Crush . | . . . Escape Stasis . | . . . Rewire . | . . . Trap . | . . . Miscellaneous . | . . . Route ------- -11/Scrapyard -10/Materials (discovered 2 exits: [*Mat] / *Min) -10/Mines (discovered 1 exit: [*Mat]) History --------- Turn | Location | Event 32 | -11/Scrapyard | Discovered new exit (range 15) 70 | -11/Scrapyard | Entered Materials 86 | -10/Materials | Identified exit to Mines 313 | -10/Materials | Build established: Mutant 346 | -10/Materials | Discovered new exit (range 16) 645 | -10/Materials | Entered Mines 675 | -10/Mines | Discovered new exit (range 10) 688 | -10/Mines | Core integrity fell below 50% 792 | -10/Mines | Met a Derelict bent on vengeance 997 | -10/Mines | Lost 3 parts (1p2w) 1233 | -10/Mines | Assembled infested the area 1238 | -10/Mines | Assisted by a Guerilla fighting off Assembled 1260 | -10/Mines | Core integrity fell below 20% 1261 | -10/Mines | Destroyed by D-53 Grenadier with Mini Grenade Launcher Last Messages --------------- 01248_ Destroyed Asb. F-torch. 01248_ T-07 Excavator destroyed. 01248_ as-75444 destroyed. 01250_ HV Slug penetrates Wall. 01250_ as-93839 destroyed. 01250_ as-07901 destroyed. 01252_ as-01588 destroyed. 01252_ Destroyed Asb. F-torch. 01252_ as-64763 destroyed. 01252_ as-50889 destroyed. 01253_ C-30 ARC bursts open, deploying its payload. 01253_ D-53 Grenadier unfolds itself. 01253_ Penetrated by HV Slug. 01254_ 4K-8YM(h) destroyed. 01256_ as-06779 destroyed. 01256_ Lgt. Nuclear Core destroyed. 01257_ T-07 Excavator destroyed. 01258_ Sml. Laser destroyed. 01258_ Grenade Launcher destroyed. 01261_ The unstable cave ceiling collapses. Map ----- +----------------------------------------------------+ | | | | | | | | | | | | | | | | | | | | | | | | | | | | | | | | | | | | | | | | | | | | | | | ??????????????# #??????????????????? | | ??????????????# ## ##??????????????? | | ??????????????# @ #????????????? | | ??????????????# d ############ | | ??????????????# d | | ??????????????## # % | | ??????????????# # ############# | | ??????????????# ### #???????????? | | ?????????????? #???######???????????? | | ?????????????## #????????????????????? | | ?????????????# !% #???????????????????? | | ????????????# #??????????####?????? | | ????????????# #?????????## ##???## | | ????????????## ????????## #???#% | | ????????????? ???????# #???# | | ???????????? ####### ??????# #???# | | ??????????? ??????? ####??????# #???# | | ??????????? ???????? #?????????## ##???# | | ??????????##???????? #??????????# ####### | | ???????????????????? #?????????## | | ???????????????????? #?????????# | | ????????????????????? ??????????# ######## | | ????????????????????????????????# #??????? | | ????????????????????????????????#####??????? | | ???????????????????????????????????????????? | | ???????????????????????????????????????????? | | ???????????????????????????????????????????? | +----------------------------------------------------+ Best States ------------- Heat Dissipation 25 Energy Generation 14 Energy Capacity 250 Matter Stores 300 Matter Capacity 300 Sight Range 16 Terrain Scan Density 10 Evasion (%) 40 Recoil Reduction 1 Item Schematics ----------------- None Robot Schematics ------------------ None Fabricated ------------ Nothing Alien Tech Used ----------------- None Achievements -------------- None Challenges ------------ None Game ------ Seed MetafiberGravityWheel Manual? 0 Play Time 00:12:37 Cumulative 24.1 hours Start 2020.05.14 @ 17:09:17 End 2020.05.14 @ 17:20:41 Sessions 1 Manual Loads 0 Difficulty Rogue Special Mode None Game No. 17 Rogue 17 Adventurer 0 Explorer 0 Win Type - Total 0 Types 0/0/0/0/0/0/0 Lore% 21 Gallery% 28 Achievement% 21 Wizard Run 0 Options --------- ASCII 0 Keyboard 1 Movement Numpad Keybinds 0 Fullscreen 1 Font 18/SmallcapsGlow Map View 76x50 Tactical HUD 1 Map Filters NONE Filters NONE Steam 1 RUN: 9022cf1a-8c74-4254-a51d-c4807654029c